[Event "Swedish U16 Team Championship 2019 - Final"]
[Site "Molnlycke Kulturhus, Biblioteksgatan 2, Molnlycke, Sweden"]
[Date "2019.08.17"]
[Round "4.15"]
[White "Bergqvist, Gustav 2004"]
[Black "Nord, Alexander"]
[Result "1/2-1/2"]
[TimeControl "90 minutes + 30 seconds per move from move one."]
[WhiteElo "1833"]
[BlackElo "1881"]

1. d4 {[%clk 01:30:52]} {[%emt 00:00:08]} e6 {[%clk 01:30:57]} {[%emt
00:00:04]} 2. e4 {[%clk 01:31:10]} {[%emt 00:00:12]} d5 {[%clk 01:31:23]}
{[%emt 00:00:04]} 3. exd5 {[%clk 01:31:37]} {[%emt 00:00:03]} exd5 {[%clk
01:31:52]} {[%emt 00:00:01]} 4. Nf3 {[%clk 01:31:58]} {[%emt 00:00:08]} Bd6
{[%clk 01:31:58]} {[%emt 00:00:24]} 5. Bd3 {[%clk 01:32:21]} {[%emt 00:00:07]}
Nf6 {[%clk 01:31:56]} {[%emt 00:00:32]} 6. O-O {[%clk 01:32:39]} {[%emt
00:00:12]} O-O {[%clk 01:32:23]} {[%emt 00:00:04]} 7. Bg5 {[%clk 01:32:11]}
{[%emt 00:00:58]} Bg4 {[%clk 01:32:23]} {[%emt 00:00:31]} 8. Nbd2 {[%clk
01:32:00]} {[%emt 00:00:41]} Nbd7 {[%clk 01:32:36]} {[%emt 00:00:16]} 9. c3
{[%clk 01:32:22]} {[%emt 00:00:08]} c6 {[%clk 01:32:59]} {[%emt 00:00:06]} 10.
Qc2 {[%clk 01:32:38]} {[%emt 00:00:14]} Qc7 {[%clk 01:31:35]} {[%emt 00:01:54]}
11. Rfe1 {[%clk 01:32:52]} {[%emt 00:00:16]} Rfe8 {[%clk 01:31:33]} {[%emt
00:00:33]} 12. h3 {[%clk 01:29:24]} Bh5 {[%clk 01:31:26]} {[%emt 00:04:34]} 13.
Rxe8+ {[%clk 01:27:36]} Rxe8 {[%clk 01:31:48]} {[%emt 00:02:27]} 14. Re1 {[%clk
01:27:47]} Rxe1+ {[%clk 01:30:41]} {[%emt 00:01:56]} 15. Nxe1 {[%clk 01:27:51]}
h6 {[%clk 01:19:00]} {[%emt 00:12:37]} 16. Be3 {[%clk 01:28:05]} Nf8 {[%clk
01:18:41]} {[%emt 00:01:06]} 17. Nef3 {[%clk 01:24:27]} Bg6 {[%clk 01:15:34]}
{[%emt 00:07:44]} 18. Nh4 {[%clk 01:20:31]} Bxd3 {[%clk 01:11:12]} {[%emt
00:09:18]} 19. Qxd3 {[%emt 00:03:24]} Qd7 {[%emt 00:09:18]} 20. Qf5 {[%clk
01:15:46]} {[%emt 00:00:11]} Qxf5 {[%clk 01:00:50]} {[%emt 00:04:13]} 21. Nxf5
{[%clk 01:16:06]} {[%emt 00:00:11]} Bb8 {[%clk 01:00:31]} {[%emt 00:00:44]} 22.
Nb3 {[%clk 01:13:30]} {[%emt 00:03:11]} Ne6 {[%clk 00:57:04]} {[%emt 00:03:56]}
23. Na5 {[%clk 01:09:39]} {[%emt 00:04:22]} Nd8 {[%clk 00:57:17]} {[%emt
00:00:16]} 24. Kf1 {[%clk 00:59:20]} {[%emt 00:10:49]} Kf8 {[%clk 00:57:27]}
{[%emt 00:00:21]} 25. Ke2 {[%clk 00:59:20]} {[%emt 00:00:30]} b6 {[%clk
00:52:42]} {[%emt 00:05:15]} 26. Nb3 {[%clk 00:58:54]} {[%emt 00:00:55]} Ng8
{[%clk 00:50:40]} {[%emt 00:02:31]} 27. Kf3 {[%clk 00:55:05]} {[%emt 00:04:19]}
Ne6 {[%clk 00:47:37]} {[%emt 00:03:34]} 28. Nc1 {[%emt 00:04:16]} Ne7 {[%clk
00:47:04]} 29. Nxe7 Kxe7 {[%clk 00:47:32]} 1/2-1/2

[Event "Swedish U16 Team Championship 2019 - Final"]
[Site "Molnlycke Kulturhus, Biblioteksgatan 2, Molnlycke, Sweden"]
[Date "2019.08.17"]
[Round "4.16"]
[White "Joensson, Oscar"]
[Black "Grahn, Vidar"]
[Result "0-1"]
[TimeControl "90 minutes + 30 seconds per move from move one."]
[WhiteElo "1790"]
[BlackElo "1898"]

1. d4 {[%clk 01:30:57]} {[%emt 00:00:02]} d5 {[%clk 01:30:54]} {[%emt
00:00:06]} 2. Nf3 {[%clk 01:31:02]} {[%emt 00:00:25]} Nf6 {[%clk 01:31:12]}
{[%emt 00:00:12]} 3. e3 {[%clk 01:31:08]} {[%emt 00:00:25]} e6 {[%clk
01:31:20]} {[%emt 00:00:22]} 4. Bd3 {[%clk 01:30:48]} {[%emt 00:00:49]} c5
{[%clk 01:31:17]} {[%emt 00:00:34]} 5. b3 {[%clk 01:30:54]} {[%emt 00:00:23]}
Nc6 {[%clk 01:30:33]} {[%emt 00:01:14]} 6. a3 {[%clk 01:30:20]} {[%emt
00:01:05]} Bd6 {[%clk 01:28:48]} {[%emt 00:02:15]} 7. O-O {[%clk 01:21:35]}
{[%emt 00:09:15]} O-O {[%clk 01:28:43]} {[%emt 00:00:35]} 8. Bb2 {[%clk
01:21:43]} {[%emt 00:00:22]} cxd4 {[%clk 01:22:01]} {[%emt 00:07:12]} 9. exd4
{[%clk 01:21:54]} {[%emt 00:00:19]} Qc7 {[%clk 01:20:55]} {[%emt 00:01:36]} 10.
h3 {[%clk 01:12:01]} {[%emt 00:10:23]} b6 {[%clk 01:19:07]} {[%emt 00:02:17]}
11. Nbd2 {[%clk 01:12:08]} {[%emt 00:00:23]} Bb7 {[%clk 01:16:43]} {[%emt
00:02:54]} 12. c4 {[%clk 01:11:00]} {[%emt 00:01:38]} Rac8 {[%clk 01:12:52]}
{[%emt 00:04:20]} 13. Qe2 {[%clk 00:58:16]} {[%emt 00:13:14]} Rfe8 {[%clk
01:04:12]} {[%emt 00:09:10]} 14. Ne5 {[%clk 00:49:39]} {[%emt 00:09:07]} Bxe5
{[%clk 00:59:02]} {[%emt 00:05:41]} 15. dxe5 {[%clk 00:50:01]} {[%emt
00:00:08]} Nd7 {[%clk 00:58:19]} {[%emt 00:01:13]} 16. Qh5 {[%clk 00:38:05]}
{[%emt 00:12:26]} h6 {[%clk 00:49:10]} {[%emt 00:09:40]} 17. f4 {[%clk
00:16:31]} {[%emt 00:22:04]} Na5 {[%clk 00:40:26]} {[%emt 00:09:14]} 18. Rac1
{[%clk 00:14:27]} {[%emt 00:02:34]} Qc5+ {[%clk 00:37:24]} {[%emt 00:03:30]} 19.
Kh1 {[%clk 00:13:06]} {[%emt 00:01:53]} Qe3 {[%clk 00:37:11]} {[%emt 00:00:39]}
20. Qe2 {[%clk 00:10:51]} {[%emt 00:02:48]} Qxe2 {[%clk 00:36:00]} {[%emt
00:01:43]} 21. Bxe2 {[%clk 00:11:16]} {[%emt 00:00:04]} Ba6 {[%clk 00:35:35]}
{[%emt 00:00:53]} 22. Rfe1 {[%clk 00:08:36]} {[%emt 00:03:11]} dxc4 {[%clk
00:35:09]} {[%emt 00:00:56]} 23. Nxc4 {[%clk 00:08:35]} {[%emt 00:00:30]} Nxc4
{[%clk 00:32:46]} {[%emt 00:02:53]} 24. Bxc4 {[%clk 00:08:47]} {[%emt
00:00:18]} Bxc4 {[%clk 00:33:07]} {[%emt 00:00:09]} 25. Rxc4 {[%clk 00:08:39]}
{[%emt 00:00:38]} Rxc4 {[%clk 00:32:44]} {[%emt 00:00:52]} 26. bxc4 {[%clk
00:09:04]} {[%emt 00:00:06]} Rc8 {[%clk 00:32:21]} {[%emt 00:00:52]} 27. Rd1
{[%clk 00:08:06]} {[%emt 00:01:29]} Nc5 {[%clk 00:32:18]} {[%emt 00:00:32]} 28.
Rd4 {[%clk 00:05:12]} {[%emt 00:03:24]} Na4 {[%clk 00:28:57]} {[%emt 00:03:52]}
29. Ba1 {[%clk 00:04:59]} {[%emt 00:00:44]} Nc5 {[%clk 00:25:44]} {[%emt
00:03:42]} 30. Bb2 {[%clk 00:03:12]} {[%emt 00:02:17]} Kf8 {[%clk 00:24:17]}
{[%emt 00:01:58]} 31. g4 {[%clk 00:03:01]} {[%emt 00:00:40]} Na4 {[%clk
00:24:06]} {[%emt 00:00:41]} 32. Ba1 {[%clk 00:02:59]} {[%emt 00:00:32]} b5
{[%clk 00:24:03]} {[%emt 00:00:35]} 33. cxb5 {[%clk 00:03:20]} {[%emt
00:00:08]} Rc1+ {[%clk 00:24:26]} {[%emt 00:00:06]} 34. Kg2 {[%clk 00:03:43]}
{[%emt 00:00:08]} Nb6 {[%clk 00:24:06]} {[%emt 00:00:48]} 35. Rd8+ {[%clk
00:03:04]} {[%emt 00:01:10]} Ke7 {[%clk 00:24:27]} {[%emt 00:00:07]} 36. Rb8
{[%clk 00:03:11]} {[%emt 00:00:25]} Rxa1 {[%clk 00:22:49]} {[%emt 00:02:08]} 37.
Rb7+ {[%clk 00:03:39]} {[%emt 00:00:04]} Nd7 {[%clk 00:22:37]} {[%emt
00:00:41]} 38. Rxa7 {[%clk 00:03:55]} {[%emt 00:00:13]} Rb1 {[%clk 00:22:15]}
{[%emt 00:00:52]} 39. a4 {[%clk 00:04:15]} {[%emt 00:00:10]} Rb4 {[%clk
00:22:07]} {[%emt 00:00:37]} 40. Kf3 {[%clk 00:03:40]} {[%emt 00:01:07]} f6
{[%clk 00:18:58]} {[%emt 00:03:39]} 41. Ke3 {[%clk 00:02:49]} {[%emt 00:01:20]}
fxe5 {[%clk 00:17:43]} {[%emt 00:01:45]} 42. fxe5 {[%clk 00:02:54]} {[%emt
00:00:24]} Kd8 {[%clk 00:17:08]} {[%emt 00:01:06]} 43. Kd3 {[%clk 00:02:45]}
{[%emt 00:00:39]} Rxa4 {[%clk 00:17:06]} {[%emt 00:00:32]} 44. Rxa4 {[%clk
00:02:09]} {[%emt 00:01:06]} Nc5+ {[%clk 00:17:29]} {[%emt 00:00:07]} 45. Kc4
{[%clk 00:02:36]} {[%emt 00:00:03]} Nxa4 {[%clk 00:17:37]} {[%emt 00:00:21]} 46.
Kb4 {[%clk 00:03:00]} {[%emt 00:00:06]} Nb6 {[%clk 00:17:54]} {[%emt 00:00:12]}
47. Ka5 {[%clk 00:02:28]} {[%emt 00:01:04]} Kc7 {[%clk 00:18:04]} {[%emt
00:00:20]} 48. Ka6 {[%clk 00:02:48]} {[%emt 00:00:10]} Nc8 {[%clk 00:17:53]}
{[%emt 00:00:39]} 49. h4 {[%clk 00:02:51]} {[%emt 00:00:29]} g6 {[%clk
00:18:09]} {[%emt 00:00:14]} 50. g5 {[%clk 00:02:10]} {[%emt 00:01:11]} h5
{[%clk 00:18:34]} {[%emt 00:00:05]} 51. Ka5 {[%clk 00:02:36]} {[%emt 00:00:03]}
Kb7 {[%clk 00:18:55]} {[%emt 00:00:08]} 52. Ka4 {[%clk 00:03:01]} {[%emt
00:00:06]} Kb6 {[%clk 00:19:15]} {[%emt 00:00:10]} 53. Kb4 {[%clk 00:03:25]}
{[%emt 00:00:06]} Ne7 {[%clk 00:19:38]} {[%emt 00:00:07]} 0-1

[Event "Swedish U16 Team Championship 2019 - Final"]
[Site "Molnlycke Kulturhus, Biblioteksgatan 2, Molnlycke, Sweden"]
[Date "2019.08.17"]
[Round "4.17"]
[White "Tran, Alva Ling"]
[Black "Morell, Ludvig"]
[Result "0-1"]
[TimeControl "90 minutes + 30 seconds per move from move one."]
[WhiteElo "1735"]
[BlackElo "1771"]

1. e4 {[%clk 01:30:58]} {[%emt 00:00:01]} c5 {[%clk 01:30:41]} {[%emt
00:00:19]} 2. Nc3 {[%clk 01:31:19]} {[%emt 00:00:09]} Nc6 {[%clk 01:31:07]}
{[%emt 00:00:04]} 3. f4 {[%clk 01:31:16]} {[%emt 00:00:33]} g6 {[%clk
01:31:14]} {[%emt 00:00:22]} 4. Nf3 {[%clk 01:31:24]} {[%emt 00:00:22]} Bg7
{[%clk 01:31:31]} {[%emt 00:00:12]} 5. g3 {[%clk 01:30:45]} {[%emt 00:01:11]}
e6 {[%clk 01:31:35]} {[%emt 00:00:26]} 6. Bg2 {[%clk 01:29:59]} {[%emt
00:01:16]} Nge7 {[%clk 01:25:21]} {[%emt 00:06:43]} 7. d3 {[%clk 01:22:03]}
{[%emt 00:08:26]} O-O {[%clk 01:22:37]} {[%emt 00:03:15]} 8. Be3 {[%clk
01:21:42]} {[%emt 00:00:51]} d6 {[%clk 01:21:48]} {[%emt 00:01:18]} 9. O-O
{[%clk 01:21:37]} {[%emt 00:00:35]} b6 {[%clk 01:21:12]} {[%emt 00:01:06]} 10.
d4 {[%clk 01:14:42]} {[%emt 00:07:25]} Bb7 {[%clk 01:19:04]} {[%emt 00:02:38]}
11. Qd2 {[%clk 01:09:24]} {[%emt 00:05:48]} Qc7 {[%clk 01:16:24]} {[%emt
00:03:10]} 12. Nb5 {[%clk 00:57:12]} {[%emt 00:12:43]} Qb8 {[%clk 01:13:36]}
{[%emt 00:03:17]} 13. dxc5 {[%clk 00:54:29]} {[%emt 00:03:14]} dxc5 {[%clk
01:12:24]} {[%emt 00:01:42]} 14. e5 {[%clk 00:50:36]} {[%emt 00:04:23]} Rd8
{[%clk 01:08:13]} {[%emt 00:04:39]} 15. Qe2 {[%clk 00:46:26]} {[%emt 00:04:43]}
Ba6 {[%clk 00:54:26]} {[%emt 00:14:16]} 16. Rfd1 {[%clk 00:42:59]} {[%emt
00:03:57]} Nd5 {[%clk 00:49:01]} {[%emt 00:05:53]} 17. c4 {[%clk 00:35:41]}
{[%emt 00:07:49]} Bxb5 {[%clk 00:49:21]} {[%emt 00:00:10]} 18. cxb5 {[%clk
00:35:52]} {[%emt 00:00:19]} Nce7 {[%clk 00:45:26]} {[%emt 00:04:25]} 19. Ng5
{[%clk 00:27:07]} {[%emt 00:09:15]} Qc7 {[%clk 00:37:26]} {[%emt 00:08:29]} 20.
Ne4 {[%clk 00:24:12]} {[%emt 00:03:26]} Nf5 {[%clk 00:34:56]} {[%emt 00:03:00]}
21. Bf2 {[%clk 00:22:44]} {[%emt 00:01:58]} Rab8 {[%clk 00:29:34]} {[%emt
00:05:52]} 22. Bh3 {[%clk 00:17:06]} {[%emt 00:06:09]} Bf8 {[%clk 00:20:24]}
{[%emt 00:09:39]} 23. Rd2 {[%clk 00:13:08]} {[%emt 00:04:28]} Rd7 {[%clk
00:17:38]} {[%emt 00:03:15]} 24. Rad1 {[%clk 00:11:57]} {[%emt 00:01:42]} Be7
{[%clk 00:12:12]} {[%emt 00:05:56]} 25. Nc3 {[%clk 00:08:58]} {[%emt 00:03:29]}
Nxc3 {[%clk 00:09:13]} {[%emt 00:03:29]} 26. bxc3 {[%clk 00:09:23]} {[%emt
00:00:05]} Rxd2 {[%clk 00:09:31]} {[%emt 00:00:11]} 27. Rxd2 {[%clk 00:09:38]}
{[%emt 00:00:16]} Rd8 {[%clk 00:08:58]} {[%emt 00:01:02]} 28. c4 {[%clk
00:05:23]} {[%emt 00:04:46]} Nd4 {[%clk 00:07:20]} {[%emt 00:02:07]} 29. Qd1
{[%clk 00:04:29]} {[%emt 00:01:25]} Nf3+ {[%clk 00:07:23]} {[%emt 00:00:26]} 30.
Qxf3 {[%clk 00:03:39]} {[%emt 00:01:21]} Rxd2 {[%clk 00:07:42]} {[%emt
00:00:10]} 31. a3 {[%clk 00:02:50]} {[%emt 00:01:20]} Rd8 {[%clk 00:07:33]}
{[%emt 00:00:37]} 32. Bf1 {[%clk 00:02:10]} {[%emt 00:01:11]} Qc8 {[%clk
00:06:35]} {[%emt 00:01:27]} 33. Qb3 {[%clk 00:01:50]} {[%emt 00:00:51]} Qd7
{[%clk 00:03:35]} {[%emt 00:03:29]} 34. Qa4 {[%clk 00:01:13]} {[%emt 00:01:08]}
f6 {[%clk 00:02:02]} {[%emt 00:02:02]} 35. exf6 {[%clk 00:00:47]} {[%emt
00:00:57]} Bxf6 {[%clk 00:02:29]} {[%emt 00:00:03]} 36. Kg2 {[%clk 00:00:37]}
{[%emt 00:00:40]} Qb7+ {[%clk 00:01:31]} {[%emt 00:01:28]} 37. Kg1 {[%clk
00:00:41]} {[%emt 00:00:26]} Bd4 {[%clk 00:01:43]} {[%emt 00:00:18]} 38. Qc2
{[%clk 00:00:38]} {[%emt 00:00:34]} Bxf2+ {[%clk 00:02:03]} {[%emt 00:00:09]}
39. Qxf2 {[%clk 00:00:37]} {[%emt 00:00:31]} Qe4 {[%clk 00:01:40]} {[%emt
00:00:51]} 40. h3 {[%clk 00:00:34]} {[%emt 00:00:34]} Qd4 {[%clk 00:02:04]}
{[%emt 00:00:07]} 41. Be2 {[%clk 00:00:33]} {[%emt 00:00:32]} Kf7 {[%clk
00:01:51]} {[%emt 00:00:42]} 42. Qxd4 {[%clk 00:00:43]} {[%emt 00:00:21]} Rxd4
{[%clk 00:02:11]} {[%emt 00:00:10]} 43. Kf2 {[%clk 00:01:05]} {[%emt 00:00:08]}
Rd2 {[%clk 00:02:36]} {[%emt 00:00:05]} 44. Ke3 {[%clk 00:01:13]} {[%emt
00:00:23]} Ra2 {[%clk 00:03:01]} {[%emt 00:00:05]} 0-1

[Event "Swedish U16 Team Championship 2019 - Final"]
[Site "Molnlycke Kulturhus, Biblioteksgatan 2, Molnlycke, Sweden"]
[Date "2019.08.17"]
[Round "4.18"]
[White "Johansson, William 2007"]
[Black "Isaksson, Philip"]
[Result "1-0"]
[TimeControl "90 minutes + 30 seconds per move from move one."]
[WhiteElo "1682"]
[BlackElo "1675"]

1. d4 {[%clk 01:30:57]} {[%emt 00:00:03]} d5 {[%clk 01:30:58]} {[%emt
00:00:03]} 2. Bf4 {[%clk 01:31:11]} {[%emt 00:00:16]} Nf6 {[%clk 01:31:21]}
{[%emt 00:00:07]} 3. e3 {[%clk 01:31:28]} {[%emt 00:00:13]} e6 {[%clk
01:31:48]} {[%emt 00:00:04]} 4. Nf3 {[%clk 01:30:48]} {[%emt 00:01:10]} Bd6
{[%clk 01:32:11]} {[%emt 00:00:06]} 5. Bg3 {[%clk 01:31:02]} {[%emt 00:00:16]}
O-O {[%clk 01:30:54]} {[%emt 00:01:46]} 6. Bd3 {[%clk 01:27:40]} {[%emt
00:03:53]} c5 {[%clk 01:30:36]} {[%emt 00:00:47]} 7. c3 {[%clk 01:27:59]}
{[%emt 00:00:11]} b6 {[%clk 01:29:09]} {[%emt 00:01:56]} 8. Qe2 {[%clk
01:27:02]} {[%emt 00:01:26]} Bb7 {[%clk 01:26:27]} {[%emt 00:03:13]} 9. Nbd2
{[%clk 01:26:54]} {[%emt 00:00:39]} Ne4 {[%emt 00:35:37]} 10. Bxe4 {[%clk
00:57:55]} {[%emt 00:00:49]} dxe4 {[%emt 00:01:32]} 11. Ne5 {[%emt 00:26:18]}
f6 {[%emt 00:00:47]} 12. Nec4 {[%emt 00:00:32]} Be7 {[%emt 00:12:42]} 13. a4
{[%emt 00:14:23]} f5 {[%emt 00:07:50]} 14. Ne5 {[%emt 00:01:40]} Nc6 {[%emt
00:01:11]} 15. Ndc4 {[%emt 00:10:41]} Nxe5 {[%clk 00:27:07]} {[%emt 00:02:13]}
16. Nxe5 cxd4 {[%emt 00:02:24]} 17. exd4 {[%emt 00:06:15]} f4 {[%emt 00:00:12]}
18. Qg4 {[%emt 00:10:28]} fxg3 {[%emt 00:00:15]} 19. Qxe6+ {[%clk 00:35:54]}
{[%emt 00:00:02]} Kh8 {[%emt 00:01:39]} 20. hxg3 {[%emt 00:11:46]} Rf6 {[%emt
00:01:07]} 21. Qxf6 {[%clk 00:33:40]} {[%emt 00:00:41]} Bxf6 22. Nf7+ {[%emt
00:00:41]} Kg8 {[%clk 00:01:23]} {[%emt 00:00:02]} 23. Nxd8 {[%clk 00:34:08]}
{[%emt 00:00:03]} Rxd8 {[%emt 00:05:17]} 24. a5 {[%emt 00:01:29]} b5 {[%emt
00:00:41]} 25. Ra3 {[%clk 00:29:13]} {[%emt 00:00:06]} a6 {[%clk 00:01:01]}
{[%emt 00:00:14]} 26. Ke2 {[%clk 00:28:09]} {[%emt 00:01:35]} Re8 {[%clk
00:00:55]} {[%emt 00:00:37]} 27. Rh5 {[%clk 00:26:29]} {[%emt 00:02:10]} g6
{[%clk 00:00:39]} {[%emt 00:00:47]} 28. Rc5 {[%clk 00:25:06]} {[%emt 00:01:52]}
Be7 {[%clk 00:00:34]} {[%emt 00:00:36]} 29. Re5 {[%clk 00:25:32]} {[%emt
00:00:03]} Kf7 {[%emt 00:00:17]} 30. Ra1 {[%clk 00:23:09]} {[%emt 00:02:50]}
1-0